Workbook

Sheet Rockwell
B2: Periodische Prüfung zur Prüfmittelüberwachung nach Rockwell
T3: Rockwell-Härteskala | U3: Härtebereich | V3: B [±] HR | W3: r
B4: Prüfmaschine | S4: =IF(I6<=75,V4,V5) -> 2.0 | T4: A | U4: 20 HRA bis 75 HRA | V4: 2.0 | W4: ≤ 0,02 (100 - H) oder 0,8 HRA | X4: =0.02*(100-I6) -> 0.7 | Y4: 0.8 | Z4: =MAX(X4:Y4) -> 0.8
B5: MPA-Nummer der Härtevergleichsplatte | U5: > 75 HRA bis 95 HRA | V5: 1.5
B6: Zertifizierte Härte der Härtevergleichsplatte | I6: 65.00 | J6: [HR] | K6: C | S6: =IF(I6<=45,V6,IF(I6<=80,V7,V8)) -> 3.0 | U6: 10 HRBW bis 45 HRBW | V6: 4.0
B7: zulässige Anzeigeabweichung in HR | I7: =IF(K6="A",S4,IF(K6="B",S6,IF(K6="C",S9,IF(K6="D",S10,IF(K6="E",S24,IF(K6="F",S26,IF(K6="G",S28,IF(K6="H",S31,IF(K6="K",S32,IF(K6="HR-N",S35,IF(K6="HR-TW",S36,""))))))))))) -> 1.5 | J7: [HR] | T7: B | U7: > 45 HRBW bis 80 HRBW | V7: 3.0 | W7: ≤ 0,04 (130 - H) HRBW | X7: =0.04*(130-I6) -> 2.6
B8: zulässige Wiederholpräzision in HR | I8: =IF(K6="A",Z4,IF(K6="B",X7,IF(K6="C",Z9,IF(K6="D",Z10,IF(K6="E",X24,IF(K6="F",X26,IF(K6="G",X29,IF(K6="H",X31,IF(K6="K",X33,IF(K6="HR-N",Z35,IF(K6="HR-TW",Z36,""))))))))))) -> 0.80 | J8: [HR] | U8: > 80 HRBE bis 100 HRBW | V8: 2.0
B9: Obere Toleranzgrenze | I9: =I6+I7 -> 66.50 | J9: [HR] | S9: =V9 -> 1.5 | T9: C | U9: 10 HRC bis 70 HRC | V9: 1.5 | W9: ≤ 0,02 (100 - H) oder 0,8 HRC | X9: =0.02*(100-I6) -> 0.7 | Y9: 0.8 | Z9: =MAX(X9:Y9) -> 0.8
B10: Untere Toleranzgrenze | I10: =I6-I7 -> 63.50 | J10: [HR] | M10: Tel.: +49 (0)2773 9169261 www.siantec.de | S10: =IF(I6<=70,V10,V23) -> 2.0 | T10: D | U10: 40 HRD bis 70 HRD | V10: 2.0 | W10: ≤ 0,02 (100 - H) oder 0,8 HRD | X10: =0.02*(100-I6) -> 0.7 | Y10: 0.8 | Z10: =MAX(X10:Y10) -> 0.8
B12: Härtewerte in [HR]
C13: =(C14-C17)/3*4+C17 -> 67.0
C14: =I9 -> 66.5
C15: =(C14-C17)/3*2+C17 -> 66.0
C16: =(C14-C17)/3*1+C17 -> 65.5
C17: =I6 -> 65.0
C18: =(C20-C17)/3*1+C17 -> 64.5
C19: =(C20-C17)/3*2+C17 -> 64.0
C20: =I10 -> 63.5
C21: =(C20-C17)/3*4+C17 -> 63.0
U23: > 70 HRD bis 77 HRD | V23: 1.5
B24: Lfd. Nr. | C24: Prüfer | D24: Datum | E24: KW | F24: 1. Mess. | G24: 2. Mess. | H24: 3. Mess. | I24: 4. Mess. | J24: 5. Mess. | K24: Mittel-wert | L24: b | M24: r | N24: Bemerkungen | S24: =IF(I6<=90,V24,V25) -> 2.5 | T24: E | U24: 70 HREW bis 90 HREW | V24: 2.5 | W24: ≤ 0,04 (130 - H) HREW | X24: =0.04*(130-I6) -> 2.6
B25: 1 | C25: Herzog | D25: 2021-02-17 | E25: =IF(ISBLANK($D25),"",TRUNC((D25-WEEKDAY(D25,2)-DATE(YEAR(D25+4-WEEKDAY(D25,2)),1,-10))/7)) -> 7 | F25: 65.20 | G25: 65.30 | H25: 65.00 | I25: 65.10 | J25: 65.50 | K25: =IF(ISBLANK($F25),"",AVERAGE(F25:J25)) -> 65.22 | L25: =IF(ISBLANK($F25),"",(K25-$I$6)) -> 0.22 | M25: =IF(ISBLANK($G25),"",MAX(F25:J25)-MIN(F25:J25)) -> 0.50 | N25: Beispiel | Q25: =(I7+L25)/I7*100-100 -> 14.66666667 | R25: =Q25*0.6 -> 8.8 | U25: > 90 HREW bis 100 HREW | V25: 2.0
B26: 2 | E26: =IF(ISBLANK($D26),"",TRUNC((D26-WEEKDAY(D26,2)-DATE(YEAR(D26+4-WEEKDAY(D26,2)),1,-10))/7)) ->  | K26: =IF(ISBLANK($F26),"",AVERAGE(F26:J26)) ->  | M26: =IF(ISBLANK($G26),"",MAX(F26:J26)-MIN(F26:J26)) ->  | Q26: =(I7+L26)/I7*100-100 ->  | R26: =Q26*0.6 ->  | S26: =IF(I6<=90,V26,V27) -> 3.0 | T26: F | U26: 60 HRFW bis 90 HRFW | V26: 3.0 | W26: ≤ 0,04 (130 - H) HRFW | X26: =0.04*(130-I6) -> 2.6
B27: 3 | K27: =IF(ISBLANK($F27),"",AVERAGE(F27:J27)) ->  | L27: =IF(ISBLANK($F27),"",(K27-$I$6)) ->  | M27: =IF(ISBLANK($G27),"",MAX(F27:J27)-MIN(F27:J27)) ->  | Q27: =(I7+L27)/I7*100-100 ->  | U27: > 90 HRFW bis 100 HRGW | V27: 2.0
B28: 4 | Q28: =(I7+L28)/I7*100-100 ->  | S28: =IF(I6<=50,V28,IF(I6<=75,V29,V30)) -> 4.5 | U28: 30 HRGW bis 50 HRGW | V28: 6.0
B29: 5 | Q29: =(I7+L29)/I7*100-100 ->  | T29: G | U29: > 50 HRGW bis 75 HRGW | V29: 4.5 | W29: ≤ 0,04 (130 - H) HRGW | X29: =0.04*(130-I6) -> 2.6
B30: 6 | Q30: =(I7+L30)/I7*100-100 ->  | U30: > 75 HRGW bis 94 HRGW | V30: 3.0
B31: 7 | Q31: =(I7+L31)/I7*100-100 ->  | S31: =V31 -> 2.0 | T31: H | U31: 80 HRHW bis 100 HRHW | V31: 2.0 | W31: ≤ 0,04 (130 - H) HRHW | X31: =0.04*(130-I6) -> 2.6
B32: 8 | L32: =IF(ISBLANK($F32),"",(K32-$I$6)) ->  | M32: =IF(ISBLANK($G32),"",MAX(F32:J32)-MIN(F32:J32)) ->  | Q32: =(I7+L32)/I7*100-100 ->  | S32: =IF(I6<=60,V32,IF(I6<=80,V33,V34)) -> 3.0 | U32: 40 HRKW bis 60 HRKW | V32: 4.0
B33: 9 | Q33: =(I7+L33)/I7*100-100 ->  | T33: K | U33: > 60 HRKW bis 80 HRKW | V33: 3.0 | W33: ≤ 0,04 (130 - H) HRKW | X33: =0.04*(130-I6) -> 2.6
B34: 10 | Q34: =(I7+L34)/I7*100-100 ->  | U34: > 80 KRKW bis 100 HRKW | V34: 2.0
B35: 11 | Q35: =(I7+L35)/I7*100-100 ->  | S35: =V35 -> 2.0 | T35: 15N , 30 N , 45 N | U35: Alle Bereiche | V35: 2.0 | W35: ≤ 0,04 (130 - H) oder 1,2 HR-N | X35: =0.04*(130-I6) -> 2.6 | Y35: 1.2 | Z35: =MAX(X35:Y35) -> 2.6
B36: 12 | Q36: =(I7+L36)/I7*100-100 ->  | S36: =V36 -> 3.0 | T36: 15T , 30T , 45T | U36: Alle Bereiche | V36: 3.0 | W36: ≤ 0,06 (130 - H) oder 2,4 HR-TW | X36: =0.03*(130-I6) -> 1.95 | Y36: 2.4 | Z36: =MAX(X36:Y36) -> 2.4
B37: 13 | Q37: =(I7+L37)/I7*100-100 -> 
B38: 14 | Q38: =(I7+L38)/I7*100-100 -> 
B39: 15 | Q39: =(I7+L39)/I7*100-100 -> 
B40: 16 | Q40: =(I7+L40)/I7*100-100 -> 
B41: 17 | Q41: =(I7+L41)/I7*100-100 -> 
B42: 18 | Q42: =(I7+L42)/I7*100-100 -> 
B43: 19 | Q43: =(I7+L43)/I7*100-100 -> 
B44: 20 | Q44: =(I7+L44)/I7*100-100 -> 
B45: 21 | Q45: =(I7+L45)/I7*100-100 -> 
B46: 22 | Q46: =(I7+L46)/I7*100-100 -> 
B47: 23 | Q47: =(I7+L47)/I7*100-100 -> 
B48: 24 | Q48: =(I7+L48)/I7*100-100 -> 
B49: 25 | Q49: =(I7+L49)/I7*100-100 -> 
B50: 26 | Q50: =(I7+L50)/I7*100-100 -> 
B51: 27 | Q51: =(I7+L51)/I7*100-100 -> 
B52: 28 | Q52: =(I7+L52)/I7*100-100 -> 
B53: 29 | Q53: =(I7+L53)/I7*100-100 -> 
B54: 30 | Q54: =(I7+L54)/I7*100-100 -> 
B55: 31 | Q55: =(I7+L55)/I7*100-100 -> 
B57: Erläuterungen:
B58: b | C58: = Abweichung der Maschine in HR - Einheiten der angewandten Skala
B59: r | C59: = Wiederholpräzision der Härteprüfmaschine in HR - Einheiten der angewandten Skala.

Sheet Vickers
B2: Periodische Prüfung zur Prüfmittelüberwachung nach Vickers
AB3: r rel %
B4: Prüfmaschine | AC4: HV 5-100 | AD4: HV 0,2-<5 | AE4: <HV 0,2 | AF4: % d | AG4: HV aus %
B5: MPA-Nummer der Härtevergleichsplatte | AA5: =0.21/I7+1.5 -> 4.9 | AB5: <=250 | AC5: 6 | AD5: 12 | AE5: 18 | AF5: =IF(I6<=225,IF(L6<0.2,AE5,IF((L6>=0.2)*(L6<5),AD5,IF((L6>=5)*(L6<=125),AC5)))) -> FALSE | AG5: =IF(AF5>1,AF5%*I6,0) -> 0
B6: Zertifizierte Härte der Härtevergleichsplatte | I6: 500.00 | K6: [HV] | L6: 1.000 | AB6: >250 | AC6: 4 | AD6: 8 | AE6: 12 | AF6: =IF(I6>225,IF(L6<0.2,AE6,IF((L6>=0.2)*(L6<5),AD6,IF((L6>=5)*(L6<=125),AC6)))) -> 8 | AG6: =IF(AF6>1,AF6%*I6,0) -> 40
B7: Mittlere Eindruckdiagonale der Härtevergleichsplatte | I7: =IF(ISBLANK(L6),"",SQRT((L6*9.807)/(I6/0.189))) -> 0.0609 | K7: [mm] | AB7: r in HV
B8: zulässige Anzeigeabweichung in % | I8: =IF(ISBLANK(L6),"",IF(I7<0.14,0.21/I7+1.5,IF(I7>0.14,"3",))) -> 4.9 | K8: %
B9: zulässige Wiederholpräzision in HV | I9: =IF(ISBLANK(L6),"",IF(I6<=250,AG5,IF(I6>250,AG6,500))) -> 40 | K9: [HV]
B10: zulässige Wiederholpräzision in % | I10: =IF(ISBLANK(L6),"",IF(I6<=225,AF5,IF(I6>225,AF6,500))) -> 8.0 | K10: %
B11: Obere Toleranzgrenze | I11: =IF(ISBLANK(L6),"",((1+(I8/100))*I6)) -> 525 | K11: [HV]
B12: Untere Toleranzgrenze | I12: =IF(ISBLANK(L6),"",((1-(I8/100))*I6)) -> 475 | K12: [HV] | N12: Tel.: +49 (0)2773 9169261 www.siantec.de
B14: Härtewerte in [HV]
C15: =(C16-C19)/3*4+C19 -> 533
C16: =I11 -> 525
C17: =(C16-C19)/3*2+C19 -> 516
C18: =(C16-C19)/3*1+C19 -> 508
C19: =I6 -> 500
C20: =(C22-C19)/3*1+C19 -> 492
C21: =(C22-C19)/3*2+C19 -> 484
C22: =I12 -> 475
C23: =(C22-C19)/3*4+C19 -> 467
B26: Lfd. Nr. | C26: Prüfer | D26: Datum | E26: KW | F26: 1. Mess. | G26: 2. Mess. | H26: 3. Mess. | I26: 4. Mess. | J26: 5. Mess. | K26: Mittel-wert | L26: d | M26: b | N26: r | O26: Bemerkungen | U26: Relative Anzeigeabweichung der mittleren Diagonale | V26: Messwert Diagonale d1 in mm | W26: Messwert Diagonale d2 in mm | X26: Messwert Diagonale d3 in mm | Y26: Messwert Diagonale d4 in mm | Z26: Messwert Diagonale d5 in mm
B27: 1 | C27: Herzog | D27: 2021-02-17 | E27: =IF(ISBLANK(D27),"",TRUNC((D27-WEEKDAY(D27,2)-DATE(YEAR(D27+4-WEEKDAY(D27,2)),1,-10))/7)) -> 7 | F27: 505 | G27: 515 | H27: 510 | I27: 512 | J27: 508 | K27: =IF(ISBLANK(F27),"",AVERAGE(F27:J27)) -> 510.0 | L27: =IF(ISBLANK(F27),"",AVERAGE(V27:Z27)) -> 0.0603 | M27: =IF(ISBLANK(F27),"",((K27-$I$6)/$I$6)*100) -> 2.0 | N27: =IF(ISBLANK(G27),"",(MAX(V27:Z27)-MIN(V27:Z27))/L27*100) -> 1.0 | O27: Beispiel | Q27: =(I8+M27)/I8*100-100 -> 40.41141899 | R27: =Q27*0.6 -> 24.24685139 | U27: =IF(ISBLANK(F27),"",((L27-$I$7)/$I$7)*100) -> -0.98 | V27: =IF(ISBLANK(F27),"",IF(F27<>0,SQRT(($L$6*9.807)/(F27/0.189)))) -> 0.0606 | W27: 0.0600 | X27: 0.0603 | Y27: 0.0602 | Z27: 0.0604
B28: 2 | E28: =IF(ISBLANK(D28),"",TRUNC((D28-WEEKDAY(D28,2)-DATE(YEAR(D28+4-WEEKDAY(D28,2)),1,-10))/7)) ->  | K28: =IF(ISBLANK(F28),"",AVERAGE(F28:J28)) ->  | L28: =IF(ISBLANK(F28),"",AVERAGE(V28:Z28)) ->  | Q28: =(I8+M28)/I8*100-100 -> 
B29: 3 | E29: =IF(ISBLANK(D29),"",TRUNC((D29-WEEKDAY(D29,2)-DATE(YEAR(D29+4-WEEKDAY(D29,2)),1,-10))/7)) ->  | K29: =IF(ISBLANK(F29),"",AVERAGE(F29:J29)) ->  | L29: =IF(ISBLANK(F29),"",AVERAGE(V29:Z29)) ->  | Q29: =(I8+M29)/I8*100-100 -> 
B30: 4 | E30: =IF(ISBLANK(D30),"",TRUNC((D30-WEEKDAY(D30,2)-DATE(YEAR(D30+4-WEEKDAY(D30,2)),1,-10))/7)) ->  | K30: =IF(ISBLANK(F30),"",AVERAGE(F30:J30)) ->  | L30: =IF(ISBLANK(F30),"",AVERAGE(V30:Z30)) ->  | Q30: =(I8+M30)/I8*100-100 -> 
B31: 5 | Q31: =(I8+M31)/I8*100-100 -> 
B32: 6 | Q32: =(I8+M32)/I8*100-100 -> 
B33: 7 | Q33: =(I8+M33)/I8*100-100 -> 
B34: 8 | Q34: =(I8+M34)/I8*100-100 -> 
B35: 9 | Q35: =(I8+M35)/I8*100-100 -> 
B36: 10 | Q36: =(I8+M36)/I8*100-100 -> 
B37: 11 | Q37: =(I8+M37)/I8*100-100 -> 
B38: 12 | Q38: =(I8+M38)/I8*100-100 -> 
B39: 13 | Q39: =(I8+M39)/I8*100-100 -> 
B40: 14 | Q40: =(I8+M40)/I8*100-100 -> 
B41: 15 | Q41: =(I8+M41)/I8*100-100 -> 
B42: 16 | Q42: =(I8+M42)/I8*100-100 -> 
B43: 17 | Q43: =(I8+M43)/I8*100-100 -> 
B44: 18 | Q44: =(I8+M44)/I8*100-100 -> 
B45: 19 | Q45: =(I8+M45)/I8*100-100 -> 
B46: 20 | Q46: =(I8+M46)/I8*100-100 -> 
B47: 21 | Q47: =(I8+M47)/I8*100-100 -> 
B48: 22 | Q48: =(I8+M48)/I8*100-100 -> 
B49: 23 | Q49: =(I8+M49)/I8*100-100 -> 
B50: 24 | Q50: =(I8+M50)/I8*100-100 -> 
B51: 25 | Q51: =(I8+M51)/I8*100-100 -> 
B52: 26 | Q52: =(I8+M52)/I8*100-100 -> 
B53: 27 | Q53: =(I8+M53)/I8*100-100 -> 
B54: 28 | Q54: =(I8+M54)/I8*100-100 -> 
B55: 29 | Q55: =(I8+M55)/I8*100-100 -> 
B56: 30 | Q56: =(I8+M56)/I8*100-100 -> 
B57: 31 | M57: =IF(ISBLANK(F57),"",((K57-$I$6)/$I$6)*100) ->  | Q57: =(I8+M57)/I8*100-100 -> 
B59: Erläuterungen:
B60: d | C60: = mittlere Diagonale in mm
B61: b | C61: = Abweichung der Maschine in %
B62: r | C62: = Wiederholpräzision der Härteprüfmaschine in %

Sheet Brinell
B2: Periodische Prüfung zur Prüfmittelüberwachung nach Brinell
W3: Beanspruchungsgrad = 30
B4: Prüfmaschine | W4: Härtebereich | X4: Härte | Y4: r rel [%] | Z4: Erel [%]
B5: MPA-Nummer der Härtevergleichsplatte | W5: 1 | X5: HC< 250 HBW | Y5: 3.0 | Z5: ± 3,0
B6: Zertifizierte Härte der Härtevergleichsplatte | I6: 250 | J6: HBW | K6: 10.0 | L6: / | M6: 3000.0 | W6: 2 | X6: 250 HBW ≤ HC ≤450 HBW | Y6: 2.5 | Z6: ± 2,5 | AB6: Prüfverfahren | AC6: HBW | AE6: 187.5
B7: Mittlere Eindruckdiagonale der Härtevergleichsplatte | I7: =IF(ISBLANK(K6),"",SQRT((K6^2-(K6-((2*M6)/(I6*3.14*K6)))^2))) -> 3.8344 | J7: [mm] | W7: 3 | X7: HC > 450 HBW | Y7: 2.0 | Z7: ± 2,0 | AB7: Sollwwert Härte HBW / Diagonale | AC7: HBW / mm | AE7: =IF(ISBLANK(AD6),"",SQRT((AD6^2-(AD6-((2*AE6)/(AD7*3.14*AD6)))^2))) -> 
B8: zulässige Wiederholpräzision in % | I8: =IF(I12<>30,Y11,IF(I6<250,Y5,IF(I6<=450,Y6,Y7))) -> 2.5 | J8: % | V8: 0,102 x FID2 = 10 | W8: 0,102 x FID2 = 5 | X8: 0,102 x FID2 ≤ 2,5 | AB8: Messwert H 1 / Diagonale d1 | AC8: HBW / mm | AD8: =IF(ISBLANK(AD6),"",(2*AE6)/(3.14*AD6*(AD6-SQRT(AD6^2-AVERAGE(AE8)^2)))) ->  | AE8: =IF(ISBLANK(AD6),"",SQRT((AD6^2-(AD6-((2*AE6)/(AD8*3.14*AD6)))^2))) -> 
B9: zulässige Anzeigeabweichung in % | I9: =IF(I12<>30,Y11,IF(I6<250,Y5,IF(I6<=450,Y6,Y7))) -> 2.5 | J9: % | U9: Härtebereich | V9: Härte | W9: Härte | X9: Härte | Y9: r rel [%] | Z9: Erel [%] | AB9: Messwert H 2 / Diagonale d2 | AC9: HBW / mm | AD9: =IF(ISBLANK(AD6),"",(2*AE6)/(3.14*AD6*(AD6-SQRT(AD6^2-AVERAGE(AE9)^2)))) ->  | AE9: =IF(ISBLANK(AD6),"",SQRT((AD6^2-(AD6-((2*AE6)/(AD9*3.14*AD6)))^2))) -> 
B10: Obere Toleranzgrenze | I10: =I6*(100+I8)/100 -> 256.3 | J10: [HBW] | U10: 1 | V10: HC < 100 HBW | W10: HC < 70 HBW | X10: HC < 70 | Y10: 3.0 | Z10: ± 3,0 | AB10: Messwert H 3 / Diagonale d3 | AC10: HBW / mm | AD10: =IF(ISBLANK(AD6),"",(2*AE6)/(3.14*AD6*(AD6-SQRT(AD6^2-AVERAGE(AE10)^2)))) ->  | AE10: =IF(ISBLANK(AD6),"",SQRT((AD6^2-(AD6-((2*AE6)/(AD10*3.14*AD6)))^2))) -> 
B11: Untere Toleranzgrenze | I11: =I6*(100-I8)/100 -> 243.8 | J11: [HBW] | U11: 2 | V11: 100 HBW ≤ HC ≤ 200 HBW | W11: 70 HBW ≤ HC ≤ 100 HBW | X11: N/A | Y11: 3.0 | Z11: ± 3,0 | AB11: Messwert H 4 / Diagonale d4 | AC11: HBW / mm | AD11: =IF(ISBLANK(AD6),"",(2*AE6)/(3.14*AD6*(AD6-SQRT(AD6^2-AVERAGE(AE11)^2)))) ->  | AE11: =IF(ISBLANK(AD6),"",SQRT((AD6^2-(AD6-((2*AE6)/(AD11*3.14*AD6)))^2))) -> 
B12: Beanspruchungsgrad | I12: =M6/K6^2 -> 30 | O12: Tel.: +49 (0)2773 9169261 www.siantec.de | U12: 3 | V12: HC >200 HBW | W12: HC > 100 HBW | X12: N/A | Y12: 3.0 | Z12: ± 3,0 | AB12: Messwert H 5 / Diagonale d5 | AC12: HBW / mm | AD12: =IF(ISBLANK(AD6),"",(2*AE6)/(3.14*AD6*(AD6-SQRT(AD6^2-AVERAGE(AE12)^2)))) ->  | AE12: =IF(ISBLANK(AD6),"",SQRT((AD6^2-(AD6-((2*AE6)/(AD12*3.14*AD6)))^2))) -> 
AB13: Mittelw. H 1-5 / Diagonale d 1-5 | AC13: HBW / mm | AD13: =IF(ISBLANK(AD6),"",AVERAGE(AD8:AD12)) ->  | AE13: =IF(ISBLANK(AD6),"",AVERAGE(AE8:AE12)) -> 
B14: Härtewerte in [HB]
C15: =(C16-C19)/3*4+C19 -> 258
C16: =I10 -> 256
C17: =(C16-C19)/3*2+C19 -> 254
C18: =(C16-C19)/3*1+C19 -> 252
C19: =I6 -> 250
C20: =(C22-C19)/3*1+C19 -> 248
C21: =(C22-C19)/3*2+C19 -> 246
C22: =I11 -> 244
C23: =(C22-C19)/3*4+C19 -> 242
B26: Lfd. Nr. | C26: Prüfer | D26: Datum | E26: KW | F26: 1. Mess. | G26: 2. Mess. | H26: 3. Mess. | I26: 4. Mess. | J26: 5. Mess. | K26: Mittel-wert | M26: d | N26: b | O26: r | P26: Bemerkungen | U26: Messwert Diagonale d1 in mm | V26: Messwert Diagonale d2 in mm | W26: Messwert Diagonale d3 in mm | X26: Messwert Diagonale d4 in mm | Y26: Messwert Diagonale d5 in mm | AB26: rel. Anzeigeabweichung Härte | AC26: % | AD26: =IF(ISBLANK(AD6),"",((AD13-AD7)/AD7)*100) -> 
B27: 1 | C27: Herzog | D27: 2021-02-19 | E27: =IF(ISBLANK(D27),"",TRUNC((D27-WEEKDAY(D27,2)-DATE(YEAR(D27+4-WEEKDAY(D27,2)),1,-10))/7)) -> 7 | F27: 251 | G27: 252 | H27: 255 | I27: 251 | J27: 253 | K27: =IF(ISBLANK(F27),"",AVERAGE(F27:J27)) -> 252 | M27: =IF(ISBLANK(F27),"",AVERAGE(U27:Y27)) -> 3.8169 | N27: =IF(ISBLANK(F27),"",((K27-$I$6)/$I$6)*100) -> 1.0 | O27: =IF(ISBLANK(G27),"",(MAX(U27:Y27)-MIN(U27:Y27))/M27*100) -> 0.8 | P27: Beispiel | R27: =(I9+N27)/I9*100-100 -> 38.4 | S27: =R27*0.6 -> 23.04 | U27: =IF(ISBLANK(F27),"",IF($F27<>0,SQRT(($K$6^2-($K$6-((2*$M$6)/(F27*3.14*$K$6)))^2)))) -> 3.8270 | V27: 3.8197 | W27: 3.7981 | X27: 3.8270 | Y27: 3.8125 | AB27: rel. Wiederholpräz. von Mittelw. d | AC27: % | AE27: =IF(ISBLANK(AD6),"",(MAX(AE8:AE12)-MIN(AE8:AE12))/AE13*100) -> 
B28: 2 | E28: =IF(ISBLANK(D28),"",TRUNC((D28-WEEKDAY(D28,2)-DATE(YEAR(D28+4-WEEKDAY(D28,2)),1,-10))/7)) ->  | R28: =(I9+N28)/I9*100-100 ->  | AB28: U Kal. der CRM aus dem Prüfzeugnis k=2 | AC28: HBW | AD28: =AD7*0.015 -> 0.00
B29: 3 | R29: =(I9+N29)/I9*100-100 ->  | AB29: Härteänderung der HBWP seit der letzten Kalibrierung durch Drift | AC29: HBW | AD29: 0.00
B30: 4 | R30: =(I9+N30)/I9*100-100 ->  | AB30: u der Härteprüfm. auf der CRM (HBWP) | AC30: HBW | AD30: =(1.14*(STDEV(AD8:AD12)))/SQRT(5) -> 
B31: 5 | R31: =(I9+N31)/I9*100-100 ->  | AB31: u Auflösung Härteprüfm. | AC31: HBW | AD31: =((2*AE6)/(3.14*AD6*(AD6-SQRT(AD6^2-AVERAGE(AE13)^2)))-(2*AE6)/(3.14*AD6*(AD6-SQRT(AD6^2-AVERAGE(AE13+AE31)^2))))/(2*SQRT(3)) ->  | AE31: =0.005*AE7 -> 
B32: 6 | R32: =(I9+N32)/I9*100-100 ->  | AB32: Messunsicherheit U Bei k=2 | AC32: HBW | AD32: =IF(ISBLANK(AD6),"",SQRT((0.5*AD28^2)+(AD29^2)+(AD30^2)+(AD31^2))*2) -> 
B33: 7 | R33: =(I9+N33)/I9*100-100 -> 
B34: 8 | R34: =(I9+N34)/I9*100-100 -> 
B35: 9 | R35: =(I9+N35)/I9*100-100 -> 
B36: 10 | R36: =(I9+N36)/I9*100-100 -> 
B37: 11 | R37: =(I9+N37)/I9*100-100 -> 
B38: 12 | R38: =(I9+N38)/I9*100-100 -> 
B39: 13 | R39: =(I9+N39)/I9*100-100 -> 
B40: 14 | R40: =(I9+N40)/I9*100-100 -> 
B41: 15 | R41: =(I9+N41)/I9*100-100 -> 
B42: 16 | R42: =(I9+N42)/I9*100-100 -> 
B43: 17 | R43: =(I9+N43)/I9*100-100 -> 
B44: 18 | R44: =(I9+N44)/I9*100-100 -> 
B45: 19 | R45: =(I9+N45)/I9*100-100 -> 
B46: 20 | R46: =(I9+N46)/I9*100-100 -> 
B47: 21 | R47: =(I9+N47)/I9*100-100 -> 
B48: 22 | R48: =(I9+N48)/I9*100-100 -> 
B49: 23 | R49: =(I9+N49)/I9*100-100 -> 
B50: 24 | R50: =(I9+N50)/I9*100-100 -> 
B51: 25 | R51: =(I9+N51)/I9*100-100 -> 
B52: 26 | R52: =(I9+N52)/I9*100-100 -> 
B53: 27 | R53: =(I9+N53)/I9*100-100 -> 
B54: 28 | R54: =(I9+N54)/I9*100-100 -> 
B55: 29 | R55: =(I9+N55)/I9*100-100 -> 
B56: 30 | R56: =(I9+N56)/I9*100-100 -> 
B57: 31 | R57: =(I9+N57)/I9*100-100 -> 
B59: Erläuterungen: | U59: =IF(ISBLANK(F59),"",IF($F59<>0,SQRT(($K$6^2-($K$6-((2*$M$6)/(F59*3.14*$K$6)))^2)))) -> 
B60: d | C60: = mittlere Diagonale in mm
B61: b | C61: = Abweichung der Maschine in %
B62: r | C62: = Wiederholpräzision der Härteprüfmaschine in %
U91: =IF(ISBLANK(F91),"",IF($F91<>0,SQRT(($K$6^2-($K$6-((2*$M$6)/(F91*3.14*$K$6)))^2)))) -> 
U123: =IF(ISBLANK(F123),"",IF($F123<>0,SQRT(($K$6^2-($K$6-((2*$M$6)/(F123*3.14*$K$6)))^2)))) -> 
U141: =IF(ISBLANK(H141),"",IF($F141<>0,SQRT(($K$6^2-($K$6-((2*$M$6)/(H141*3.14*$K$6)))^2)))) ->  | V141: =IF(ISBLANK(I141),"",IF($F141<>0,SQRT(($K$6^2-($K$6-((2*$M$6)/(I141*3.14*$K$6)))^2)))) ->  | W141: =IF(ISBLANK(J141),"",IF($F141<>0,SQRT(($K$6^2-($K$6-((2*$M$6)/(J141*3.14*$K$6)))^2)))) -> 
